fUST/lending_fUST_20240608
["ID","MTS","AMOUNT","RATE_DAILY","PERIOD"]
[328776640,1717783848271,-151.0,0.00021917,2]
[328776642,1717783848282,-500.0,0.00021917,3]
[328776644,1717783848293,-1024.17,0.00021917,3]
[328776647,1717783848307,-1496.1,0.00021917,3]
[328776650,1717783848316,-509.24401375,0.00021917,3]
[328776659,1717783848326,-500.0,0.00021917,3]
[328776669,1717783848336,-2843.9,0.00021917,3]
[328776679,1717783848346,-5968.94,0.00021917,3]
[328776688,1717783848355,-500.0,0.00021917,3]
[328776699,1717783848365,-500.0,0.00021917,3]
[328776708,1717783848374,-28999.9,0.00021917,3]
[328776716,1717783848384,-506.87354775,0.00021917,3]
[328776719,1717783848394,-500.0,0.00021917,3]
[328776728,1717783848404,-500.0,0.00021917,3]
[328776736,1717783848414,-151.0,0.00021917,2]
[328776744,1717783848423,-500.0,0.00021917,3]
[328776752,1717783848433,-151.0,0.00021917,2]
[328776762,1717783848443,-151.0,0.00021917,2]
[328776770,1717783848453,-151.0,0.00021917,2]
[328776776,1717783848463,-984.08,0.00021917,3]
[328776782,1717783848472,-500.0,0.00021917,3]
[328776786,1717783848482,-500.0,0.00021917,3]
[328776791,1717783848495,-151.0,0.00021917,2]
[328776796,1717783848505,-151.0,0.00021917,2]
[328776802,1717783848515,-6920.7,0.00021917,3]
[328776807,1717783848525,-500.0,0.00021917,3]
[328776812,1717783848535,-151.0,0.00021917,2]
[328776817,1717783848544,-500.0,0.00021917,3]
[328776822,1717783848558,-504.49874244,0.00021917,3]
[328776826,1717783848567,-500.0,0.00021917,3]
[328776830,1717783848577,-714.36,0.00021917,3]
[328776834,1717783848587,-500.0,0.00021917,3]
[328776838,1717783848597,-884.72,0.00021917,3]
[328776842,1717783848607,-500.0,0.00021917,3]
[328776847,1717783848617,-345.94796893,0.00021917,3]
[328776851,1717783848627,-1111.49,0.00021917,3]
[328776856,1717783848636,-500.0,0.00021917,3]
[328776859,1717783848646,-502.77626701,0.00021917,3]
[328776863,1717783848656,-527.19053864,0.00021917,3]
[328776867,1717783848665,-500.0,0.00021917,3]
[328776871,1717783848675,-500.0,0.00021917,3]
[328776875,1717783848685,-3398.63,0.00021917,3]
[328776878,1717783848695,-11432.53,0.00021917,3]
[328776881,1717783848704,-500.0,0.00021917,3]
[328776885,1717783848714,-1000.0,0.00021917,3]
[328776890,1717783848724,-500.0,0.00021917,3]
[328776893,1717783848733,-500.0,0.00021917,3]
[328776897,1717783848743,-500.0,0.00021917,3]
[328776900,1717783848752,-500.0,0.00021917,3]
[328776903,1717783848762,-151.0,0.00021917,2]
[328776906,1717783848771,-151.0,0.00021917,2]
[328776909,1717783848780,-151.0,0.00021917,2]
[328776912,1717783848790,-2568.28,0.00021917,3]
[328776915,1717783848803,-500.0,0.00021917,3]
[328776919,1717783848813,-505.58395105,0.00021917,3]
[328776921,1717783848823,-500.0,0.00021917,3]
[328776925,1717783848832,-500.0,0.00021917,3]
[328776929,1717783848841,-500.0,0.00021917,3]
[328776933,1717783848851,-890.08,0.00021917,3]
[328776937,1717783848860,-500.0,0.00021917,3]
[328776941,1717783848869,-500.0,0.00021917,3]
[328776944,1717783848879,-500.0,0.00021917,3]
[328776948,1717783848888,-777.82,0.00021917,3]
[328776951,1717783848899,-151.0,0.00021917,2]
[328776955,1717783848909,-151.0,0.00021917,2]
[328776959,1717783848919,-151.0,0.00021917,2]
[328776962,1717783848928,-151.0,0.00021917,2]
[328776965,1717783848938,-500.0,0.00021917,3]
[328776968,1717783848947,-500.0,0.00021917,3]
[328776971,1717783848956,-2756.93,0.00021917,3]
[328776974,1717783848966,-508.51572346,0.00021917,3]
[328776977,1717783848976,-500.0,0.00021917,3]
[328776980,1717783848989,-500.0,0.00021917,3]
[328776983,1717783848999,-151.0,0.00021917,2]
[328776986,1717783849009,-261.11642441,0.00021917,3]
[328776989,1717783849021,-151.0,0.00021917,2]
[328776992,1717783849031,-151.0,0.00021917,2]
[328776995,1717783849040,-151.0,0.00021917,2]
[328776997,1717783849052,-500.0,0.00021917,3]
[328777000,1717783849062,-663.15,0.00021917,3]
[328777003,1717783849073,-2260.74,0.00021917,3]
[328777006,1717783849083,-151.0,0.00021917,2]
[328777009,1717783849092,-151.0,0.00021917,2]
[328777012,1717783849102,-151.0,0.00021917,2]
[328777014,1717783849112,-151.0,0.00021917,2]
[328777017,1717783849122,-317.42040987,0.00021917,3]
[328777020,1717783849131,-500.0,0.00021917,3]
[328777023,1717783849141,-690.85,0.00021917,3]
[328777025,1717783849150,-507.95238793,0.00021917,3]
[328777027,1717783849160,-768.3,0.00021917,3]
[328777028,1717783849169,-1238.71,0.00021917,3]
[328777031,1717783849180,-500.0,0.00021917,3]
[328777034,1717783849190,-500.0,0.00021917,3]
[328777037,1717783849200,-1266.36,0.00021917,3]
[328777040,1717783849209,-500.0,0.00021917,3]
[328777043,1717783849219,-500.0,0.00021917,3]
[328777046,1717783849229,-500.0,0.00021917,3]
[328777048,1717783849239,-500.0,0.00021917,3]
[328777050,1717783849248,-151.0,0.00021917,2]
[328777052,1717783849258,-500.0,0.00021917,3]
[328777054,1717783849268,-500.0,0.00021917,3]
[328777056,1717783849278,-151.0,0.00021917,2]
[328777061,1717783849288,-500.0,0.00021917,2]
[328777065,1717783849302,-500.0,0.00021917,3]
[328777070,1717783849312,-151.0,0.00021917,2]
[328777074,1717783849321,-550.20908396,0.00021917,3]
[328777078,1717783849331,-500.0,0.00021917,3]
[328777099,1717783849425,-151.0,0.00021918,2]
[328777104,1717783849438,-151.0,0.00021918,2]
[328777107,1717783849448,-166.666666,0.00021918,2]
[328777110,1717783849458,-508.133605,0.00021918,2]
[328777113,1717783849467,-508.133605,0.00021918,2]
[328777116,1717783849477,-508.133605,0.00021918,2]
[328777119,1717783849486,-508.133605,0.00021918,2]
[328777122,1717783849496,-508.133605,0.00021918,2]
[328777125,1717783849506,-508.133605,0.00021918,2]
[328777127,1717783849516,-23529.1836693,0.00021918,2]
[328777130,1717783849526,-151.0,0.00021918,2]
[328777132,1717783849536,-151.0,0.00021918,2]
[328777135,1717783849546,-152.174664,0.00021918,2]
[328777137,1717783849560,-508.133605,0.00021918,2]
[328777139,1717783849569,-508.133605,0.00021918,2]
[328777141,1717783849579,-151.0,0.00021918,2]
[328777143,1717783849590,-151.0,0.00021918,2]
[328777145,1717783849599,-151.0,0.00021918,2]
[328777147,1717783849609,-1641.09,0.00021999,3]
[328777148,1717783849618,-1641.09,0.00021999,3]
[328777149,1717783849628,-1641.09,0.00021999,3]
[328777151,1717783849639,-1641.09,0.00021999,3]
[328777153,1717783849649,-1641.09,0.00021999,3]
[328777155,1717783849659,-1641.18513715,0.00021999,3]
[328777157,1717783849669,-827.93,0.00021999,3]
[328777158,1717783849678,-827.93,0.00021999,3]
[328777159,1717783849688,-827.93,0.00021999,3]
[328777160,1717783849697,-827.93,0.00021999,3]
[328777162,1717783849707,-827.93,0.00021999,3]
[328777164,1717783849716,-827.93,0.00021999,3]
[328777166,1717783849725,-827.93,0.00021999,3]
[328777168,1717783849735,-827.93,0.00021999,3]
[328777170,1717783849744,-827.95455203,0.00021999,3]
[328777172,1717783849754,-151.0,0.00021999,2]
[328777174,1717783849763,-206401.90046414,0.00022,2]
[328777176,1717783849773,-1000.0,0.00022,4]
[328777178,1717783849783,-151.0,0.00022,2]
[328777180,1717783849792,-340.0,0.00022,2]
[328777182,1717783849806,-508.133605,0.00022,2]
[328777184,1717783849815,-508.133605,0.00022,2]
[328777186,1717783849824,-374.251572,0.00022,2]
[328777188,1717783849833,-374.251572,0.00022,2]
[328777189,1717783849843,-151.0,0.00022,2]
[328777191,1717783849853,-151.0,0.00022,2]
[328777193,1717783849863,-151.0,0.00022,2]
[328777196,1717783849872,-151.0,0.00022,2]
[328777197,1717783849882,-151.0,0.00022,2]
[328777199,1717783849892,-151.0,0.00022,2]
[328777201,1717783849902,-151.0,0.00022,2]
[328777203,1717783849911,-85236.0,0.0002213,4]
[328777205,1717783849921,-151.0,0.0002213,2]
[328777207,1717783849931,-508.133605,0.0002213,2]
[328777209,1717783849940,-508.133605,0.0002213,2]
[328777211,1717783849950,-374.251572,0.0002213,2]
[328777213,1717783849959,-374.251572,0.0002213,2]
[328777215,1717783849969,-151.0,0.0002213,2]
[328777217,1717783849980,-151.0,0.0002213,2]
[328777219,1717783849991,-262.315944,0.0002213,2]
[328777221,1717783850001,-151.0,0.0002213,2]
[328777223,1717783850010,-151.0,0.0002213,2]
[328777225,1717783850025,-151.0,0.0002213,2]
[328777228,1717783850036,-151.0,0.0002213,2]
[328777230,1717783850045,-623.54770825,0.00022191,2]
[328777232,1717783850061,-512.38342574,0.00022191,3]
[328777234,1717783850072,-500.0,0.00022191,3]
[328777236,1717783850082,-500.0,0.00022191,3]
[328777238,1717783850093,-500.0,0.00022191,3]
[328777240,1717783850103,-521.1549641,0.00022191,3]
[328777242,1717783850112,-500.0,0.00022191,3]
[328777243,1717783850121,-539.018507,0.00022191,3]
[328777246,1717783850131,-500.0,0.00022191,3]
[328777248,1717783850140,-506.7285287,0.00022191,3]
[328777249,1717783850150,-500.0,0.00022191,3]
[328777252,1717783850160,-500.0,0.00022191,3]
[328777254,1717783850170,-500.0,0.00022191,3]
[328777256,1717783850180,-164.83023849,0.00022191,3]
[328777258,1717783850190,-500.0,0.00022191,3]
[328777259,1717783850200,-504.19629295,0.00022191,3]
[328777261,1717783850210,-500.0,0.00022191,3]
[328777263,1717783850220,-500.0,0.00022191,3]
[328777265,1717783850230,-500.0,0.00022191,3]
[328777267,1717783850240,-2244.8,0.00022191,3]
[328777269,1717783850249,-506.7361173,0.00022191,3]
[328777271,1717783850258,-500.0,0.00022191,3]
[328777273,1717783850268,-504.40851952,0.00022191,3]
[328777275,1717783850277,-506.23710797,0.00022191,3]
[328777277,1717783850287,-517.98234788,0.00022191,3]
[328777279,1717783850300,-500.0,0.00022191,3]
[328777281,1717783850311,-500.0,0.00022191,3]
[328777283,1717783850321,-585.28692475,0.00022191,3]
[328777285,1717783850330,-505.85074964,0.00022191,3]
[328777286,1717783850340,-500.0,0.00022191,3]
[328777288,1717783850349,-500.0,0.00022191,3]
[328777289,1717783850358,-500.0,0.00022191,3]
[328777290,1717783850367,-500.0,0.00022191,3]
[328777292,1717783850376,-500.0,0.00022191,3]
[328777294,1717783850387,-529.71,0.00022191,3]
[328777296,1717783850397,-1016.59,0.00022191,3]
[328777297,1717783850407,-500.0,0.00022191,3]
[328777299,1717783850417,-500.0,0.00022191,3]
[328777301,1717783850426,-500.0,0.00022191,3]
[328777303,1717783850436,-500.0,0.00022191,3]
[328777305,1717783850446,-500.0,0.00022191,3]
[328777306,1717783850455,-516.8566827,0.00022191,3]
[328777308,1717783850465,-500.0,0.00022191,3]
[328777310,1717783850475,-281.41260247,0.00022191,3]
[328777313,1717783850506,-250.22896274,0.00022191,3]
[328777314,1717783850519,-2296.0,0.00022191,4]
[328777315,1717783850533,-521.81775732,0.00022191,3]
[328777316,1717783850542,-1017.31,0.00022191,3]
[328777317,1717783850556,-151.0,0.00022191,2]
[328777319,1717783850566,-500.0,0.00022191,3]
[328777321,1717783850575,-507.45333442,0.00022191,3]
[328777323,1717783850586,-500.0,0.00022191,3]
[328777325,1717783850597,-516.86677249,0.00022191,3]
[328777326,1717783850614,-500.0,0.00022191,3]
[328777328,1717783850633,-631.91,0.00022191,3]
[328777330,1717783850643,-500.0,0.00022191,3]
[328777332,1717783850652,-500.0,0.00022191,3]
[328777334,1717783850662,-500.0,0.00022191,3]
[328777336,1717783850671,-500.0,0.00022191,3]
[328777337,1717783850681,-500.0,0.00022191,3]
[328777339,1717783850690,-500.0,0.00022191,3]
[328777341,1717783850700,-500.0,0.00022191,3]
[328777343,1717783850709,-500.0,0.00022191,3]
[328777345,1717783850719,-565.0,0.00022191,3]
[328777347,1717783850728,-554.31371067,0.00022191,3]
[328777348,1717783850738,-500.0,0.00022191,3]
[328777349,1717783850748,-160.40405461,0.00022191,3]
[328777350,1717783850757,-451.37576035,0.00022191,3]
[328777351,1717783850767,-527.64391812,0.00022191,3]
[328777352,1717783850777,-543.53,0.00022191,3]
[328777354,1717783850786,-500.0,0.00022191,3]
[328777355,1717783850795,-170.53046433,0.00022191,3]
[328777356,1717783850808,-305.15923228,0.00022191,3]
[328777357,1717783850817,-500.0,0.00022191,3]
[328777358,1717783850826,-558.78450461,0.00022191,3]
[328777359,1717783850835,-500.0,0.00022191,3]
[328777360,1717783850844,-585.806093,0.00022191,3]
[328777361,1717783850853,-544.8,0.00022191,3]
[328777362,1717783850863,-508.30958498,0.00022191,3]
[328777363,1717783850873,-500.0,0.00022191,3]
[328777364,1717783850882,-500.0,0.00022191,3]
[328777365,1717783850891,-500.0,0.00022191,3]
[328777367,1717783850900,-589.52750579,0.00022191,3]
[328777369,1717783850910,-500.0,0.00022191,3]
[328777370,1717783850919,-500.0,0.00022191,3]
[328777372,1717783850929,-997.3,0.00022191,3]
[328777374,1717783850939,-500.0,0.00022191,3]
[328777376,1717783850949,-2497.56,0.00022191,3]
[328777378,1717783850959,-944.28,0.00022191,3]
[328777379,1717783850968,-624.66896292,0.00022191,3]
[328777388,1717783851064,-2238.55103708,0.00022191,3]
[328777389,1717783851075,-500.0,0.00022191,3]
[328777391,1717783851084,-554.86854701,0.00022191,3]
[328777392,1717783851094,-500.0,0.00022191,3]
[328777393,1717783851104,-500.0,0.00022191,3]
[328777394,1717783851114,-500.0,0.00022191,3]
[328777395,1717783851124,-500.0,0.00022191,3]
[328777396,1717783851135,-541.39,0.00022191,3]
[328777397,1717783851144,-500.0,0.00022191,3]
[328777398,1717783851155,-500.0,0.00022191,3]
[328777399,1717783851165,-760.87,0.00022191,3]
[328777401,1717783851175,-1159.77,0.00022191,3]
[328777402,1717783851185,-500.0,0.00022191,3]
[328777404,1717783851194,-500.0,0.00022191,3]
[328777406,1717783851204,-500.0,0.00022191,3]
[328777408,1717783851213,-500.0,0.00022191,3]
[328777410,1717783851223,-500.0,0.00022191,3]
[328777412,1717783851233,-500.0,0.00022191,3]
[328777414,1717783851243,-500.0,0.00022191,3]
[328777416,1717783851252,-500.0,0.00022191,3]
[328777418,1717783851262,-500.0,0.00022191,3]
[328777420,1717783851272,-528.17454433,0.00022191,3]
[328777422,1717783851283,-500.0,0.00022191,3]
[328777425,1717783851292,-500.0,0.00022191,3]
[328777427,1717783851305,-500.0,0.00022191,3]
[328777428,1717783851314,-500.0,0.00022191,3]
[328777431,1717783851324,-231.73320359,0.00022191,3]
[328777433,1717783851334,-500.0,0.00022191,3]
[328777434,1717783851343,-2067.71,0.00022191,3]
[328777436,1717783851353,-500.0,0.00022191,3]
[328777438,1717783851362,-500.0,0.00022191,3]
[328777440,1717783851372,-794.61,0.00022191,3]
[328777442,1717783851383,-503.26048599,0.00022191,3]
[328777444,1717783851392,-17.92284486,0.00022191,3]
[328777466,1717783851762,-500.0,0.00019178,2]
[328777467,1717783851772,-500.0,0.00019178,2]
[328777468,1717783851781,-326.28471036,0.00019178,2]
[328777469,1717783851791,-351.87136275,0.00019178,2]
[328777470,1717783851803,-410.59941643,0.00019178,2]
[328777471,1717783851814,-500.0,0.00019178,2]
[328777473,1717783851823,-500.0,0.00019178,2]
[328777475,1717783851833,-500.0,0.00019178,2]
[328777477,1717783851842,-500.0,0.00019178,2]
[328777479,1717783851851,-500.0,0.00019178,2]
[328777481,1717783851861,-500.0,0.00021917,3]
[328777483,1717783851870,-1868.84451046,0.00022191,3]
[328777501,1717783852064,-875.58264468,0.00022191,3]
[328777503,1717783852074,-500.0,0.00022191,2]
[328777505,1717783852083,-1734.56,0.00022191,3]
[328777507,1717783852094,-500.0,0.00022191,3]
[328777509,1717783852103,-500.0,0.00022191,3]
[328777510,1717783852112,-1019.55,0.00022191,3]
[328777512,1717783852122,-500.0,0.00022191,3]
[328777514,1717783852131,-1061.54,0.00022191,3]
[328777515,1717783852141,-509.71873804,0.00022191,3]
[328777516,1717783852151,-500.0,0.00022191,3]
[328777517,1717783852160,-1346.7,0.00022191,3]
[328777518,1717783852170,-500.0,0.00022191,3]
[328777519,1717783852179,-500.0,0.00022191,3]
[328777520,1717783852189,-290.75899091,0.00022191,3]
[328777521,1717783852199,-500.0,0.00022191,3]
[328777522,1717783852208,-395.84284851,0.00022191,3]
[328777523,1717783852217,-500.0,0.00022191,3]
[328777524,1717783852227,-505.04740811,0.00022191,3]
[328777525,1717783852236,-500.0,0.00022191,2]
[328777526,1717783852246,-500.0,0.00022191,3]
[328777527,1717783852255,-626.63,0.00022191,3]
[328777528,1717783852264,-500.0,0.00022191,3]
[328777529,1717783852274,-943.64,0.00022191,3]
[328777530,1717783852284,-500.0,0.00022191,3]
[328777531,1717783852294,-500.0,0.00022191,3]
[328777532,1717783852307,-500.0,0.00022191,3]
[328777533,1717783852316,-500.0,0.00022191,3]
[328777534,1717783852325,-200.0,0.00022191,3]
[328777535,1717783852335,-500.0,0.00022191,3]
[328777536,1717783852344,-500.0,0.00022191,3]
[328777537,1717783852448,-500.90795888,0.00022191,3]
[328777538,1717783852460,-2820.3,0.00022191,3]
[328777539,1717783852470,-2677.99,0.00022191,3]
[328777540,1717783852480,-764.85,0.00022191,3]
[328777541,1717783852489,-500.0,0.00022191,3]
[328777542,1717783852499,-1284.93,0.00022191,3]
[328777543,1717783852510,-500.0,0.00022191,3]
[328777544,1717783852522,-1486.87,0.00022191,3]
[328777545,1717783852532,-500.0,0.00022191,3]
[328777546,1717783852542,-500.0,0.00022191,3]
[328777547,1717783852557,-909.16,0.00022191,3]
[328777548,1717783852566,-500.0,0.00022191,3]
[328777549,1717783852575,-508.49533427,0.00022191,3]
[328777550,1717783852585,-500.0,0.00022191,3]
[328777551,1717783852594,-500.0,0.00022191,3]
[328777552,1717783852604,-504.08624409,0.00022191,3]
[328777553,1717783852613,-500.0,0.00022191,3]
[328777554,1717783852623,-500.0,0.00022191,3]
[328777555,1717783852632,-500.0,0.00022191,3]
[328777556,1717783852642,-508.133605,0.00022191,2]
[328777557,1717783852652,-818.25,0.00022191,3]
[328777558,1717783852662,-508.133605,0.00022191,2]
[328777559,1717783852671,-508.133605,0.00022191,2]
[328777560,1717783852681,-508.133605,0.00022191,2]
[328777561,1717783852690,-500.0,0.00022191,3]
[328777562,1717783852700,-500.0,0.00022191,3]
[328777563,1717783852709,-508.133605,0.00022191,2]
[328777564,1717783852718,-508.133605,0.00022191,2]
[328777565,1717783852728,-500.0,0.00022191,3]
[328777566,1717783852738,-508.133605,0.00022191,2]
[328777567,1717783852747,-508.133598,0.00022191,2]
[328777568,1717783852757,-500.0,0.00022191,3]
[328777569,1717783852766,-501.57811166,0.00022191,2]
[328777570,1717783852776,-502.13210449,0.00022191,3]
[328777571,1717783852786,-518.66,0.00022191,3]
[328777572,1717783852795,-1030.99,0.00022191,3]
[328777573,1717783852808,-500.0,0.00022191,3]
[328777574,1717783852818,-507.20497364,0.00022191,3]
[328777575,1717783852827,-500.0,0.00022191,3]
[328777576,1717783852837,-719.64,0.00022191,3]
[328777577,1717783852847,-500.0,0.00022191,3]
[328777578,1717783852856,-3343.68,0.00022191,3]
[328777579,1717783852865,-500.0,0.00022191,3]
[328777580,1717783852875,-1572.74,0.00022191,3]
[328777581,1717783852884,-619.12553093,0.00022191,3]
[328777582,1717783852894,-500.0,0.00022191,3]
[328777583,1717783852903,-512.78736389,0.00022191,3]
[328777584,1717783852912,-2705.51,0.00022191,3]
[328777585,1717783852922,-902.24,0.00022191,3]
[328777586,1717783852932,-500.0,0.00022191,3]
[328777587,1717783852941,-500.0,0.00022191,3]
[328777588,1717783852951,-521.01492509,0.00022191,3]
[328777589,1717783852961,-500.0,0.00022191,3]
[328777590,1717783852970,-502.49268784,0.00022191,2]
[328777591,1717783852980,-1372.67,0.00022191,3]
[328777592,1717783852994,-519.62102221,0.00022191,3]
[328777593,1717783853004,-500.0,0.00022191,3]
[328777594,1717783853013,-500.0,0.00022191,3]
[328777595,1717783853023,-752.09,0.00022191,3]
[328777596,1717783853034,-520.19906176,0.00022191,3]
[328777597,1717783853044,-500.0,0.00022191,3]
[328777598,1717783853056,-2114.8,0.00022191,3]
[328777599,1717783853068,-500.0,0.00022191,3]
[328777600,1717783853077,-872.17,0.00022191,3]
[328777601,1717783853086,-1331.31,0.00022191,3]
[328777602,1717783853096,-500.0,0.00022191,3]
[328777603,1717783853105,-500.0,0.00022191,3]
[328777604,1717783853114,-500.0,0.00022191,3]
[328777605,1717783853123,-500.0,0.00022191,3]
[328777606,1717783853133,-863.43,0.00022191,3]
[328777607,1717783853143,-500.0,0.00022191,3]
[328777608,1717783853153,-500.0,0.00022191,3]
[328777609,1717783853163,-506.63641264,0.00022191,3]
[328777610,1717783853172,-500.0,0.00022191,3]
[328777611,1717783853181,-500.0,0.00022191,3]
[328777612,1717783853191,-500.0,0.00022191,3]
[328777613,1717783853201,-500.0,0.00022191,3]
[328777614,1717783853211,-500.0,0.00022191,3]
[328777615,1717783853220,-500.0,0.00022191,3]
[328777616,1717783853230,-503.99703989,0.00022191,3]
[328777617,1717783853240,-743.13,0.00022191,3]
[328777618,1717783853250,-500.0,0.00022191,3]
[328777619,1717783853259,-500.0,0.00022191,3]
[328777620,1717783853268,-500.0,0.00022191,3]
[328777621,1717783853277,-500.0,0.00022191,3]
[328777622,1717783853287,-3486.81,0.00022191,3]
[328777623,1717783853296,-771.89,0.00022191,3]
[328777624,1717783853310,-500.0,0.00022191,3]
[328777625,1717783853319,-504.18712952,0.00022191,3]
[328777626,1717783853327,-626.26,0.00022191,3]
[328777627,1717783853337,-500.0,0.00022191,3]
[328777628,1717783853345,-775.34,0.00022191,3]
[328777629,1717783853354,-500.0,0.00022191,3]
[328777630,1717783853363,-500.0,0.00022191,3]
[328777631,1717783853372,-500.0,0.00022191,3]
[328777632,1717783853382,-500.0,0.00022191,3]
[328777633,1717783853391,-500.0,0.00022191,3]
[328777634,1717783853401,-500.0,0.00022191,3]
[328777635,1717783853410,-500.0,0.00022191,3]
[328777636,1717783853419,-503.91687657,0.00022191,3]
[328777637,1717783853429,-500.0,0.00022191,3]
[328777638,1717783853438,-444.87838767,0.00022191,3]
[328777639,1717783853448,-500.0,0.00022191,3]
[328777640,1717783853457,-6061.25,0.00022191,3]
[328777641,1717783853467,-501.61679368,0.00022191,3]
[328777642,1717783853477,-500.0,0.00022191,3]
[328777643,1717783853486,-1967.47,0.00022191,3]
[328777644,1717783853496,-500.0,0.00022191,3]
[328777645,1717783853506,-1623.13,0.00022191,3]
[328777646,1717783853515,-500.0,0.00022191,3]
[328777647,1717783853525,-6129.67,0.00022191,3]
[328777648,1717783853534,-1144.15,0.00022191,3]
[328777649,1717783853543,-503.17984634,0.00022191,3]
[328777650,1717783853554,-500.0,0.00022191,3]
[328777651,1717783853564,-609.51813045,0.00022191,3]
[328777652,1717783853574,-500.0,0.00022191,3]
[328777653,1717783853583,-767.11,0.00022191,3]
[328777654,1717783853593,-500.0,0.00022191,3]
[328777655,1717783853602,-500.0,0.00022191,3]
[328777656,1717783853611,-2989.11,0.00022191,3]
[328777657,1717783853621,-4013.75,0.00022191,3]
[328777658,1717783853631,-508.21092255,0.00022191,3]
[328777659,1717783853640,-500.0,0.00022191,3]
[328777660,1717783853650,-500.0,0.00022191,3]
[328777661,1717783853660,-712.07,0.00022191,3]
[328777662,1717783853670,-1100.69,0.00022191,3]
[328777663,1717783853679,-500.0,0.00022191,3]
[328777664,1717783853689,-500.0,0.00022191,3]
[328777665,1717783853699,-500.0,0.00022191,3]
[328777666,1717783853709,-500.0,0.00022191,3]
[328777667,1717783853718,-1013.97,0.00022191,3]
[328777668,1717783853728,-500.0,0.00022191,3]
[328777669,1717783853738,-532.9479415,0.00022191,3]
[328777670,1717783853824,-507.58474671,0.00022191,3]
[328777671,1717783853835,-500.0,0.00022191,3]
[328777672,1717783853845,-500.0,0.00022191,3]
[328777673,1717783853855,-500.0,0.00022191,3]
[328777674,1717783853865,-5473.33,0.00022191,3]
[328777675,1717783853874,-951.56,0.00022191,3]
[328777676,1717783853884,-500.0,0.00022191,3]
[328777677,1717783853893,-570.5815168,0.00022191,3]
[328777678,1717783853903,-500.0,0.00022191,3]
[328777679,1717783853912,-500.0,0.00022191,3]
[328777680,1717783853922,-500.0,0.00022191,3]
[328777681,1717783853932,-1308.65,0.00022191,3]
[328777682,1717783853941,-226.25,0.00022191,3]
[328777683,1717783853951,-500.0,0.00022191,3]
[328777684,1717783853960,-3625.54,0.00022191,3]
[328777685,1717783853970,-374.251572,0.00022191,2]
[328777686,1717783853980,-374.251572,0.00022191,2]
[328777687,1717783853996,-504.78755915,0.00022191,3]
[328777688,1717783854006,-374.251572,0.00022191,2]
[328777689,1717783854016,-595.78,0.00022191,3]
[328777690,1717783854026,-374.251572,0.00022191,2]
[328777691,1717783854039,-374.251572,0.00022191,2]
[328777692,1717783854048,-500.0,0.00022191,3]
[328777693,1717783854063,-500.0,0.00022191,3]
[328777694,1717783854080,-374.251572,0.00022191,2]
[328777695,1717783854101,-500.0,0.00022191,3]
[328777696,1717783854112,-500.0,0.00022191,3]
[328777697,1717783854123,-165.83019783,0.00022191,3]
[328777698,1717783854133,-12603.07,0.00022191,3]
[328777699,1717783854143,-500.0,0.00022191,3]
[328777700,1717783854154,-294.69872866,0.00022191,3]
[328777701,1717783854164,-151.0,0.00022191,2]